[Event "Titled Tuesday Blitz March 29 Late 2022"]
[White "Indjic, Aleksandar"]
[Black "Ambartsumova, Karina"]
[WhiteFideId "911925"]
[BlackFideId "4166299"]
[WhiteElo "2616"]
[BlackElo "2262"]
[Result "1-0"]
[Round "04"]
[TimeControl "180+1"]
[Date "2022.03.29"]
[WhiteClock "0:01:15"]
[BlackClock "0:00:08"]

1. d4 {[%clk 0:03:00]}  Nf6 {[%clk 0:02:59]} 2. c4 {[%clk 0:02:58]}  e6 {[%clk 0:03:00]} 3. Nc3 {[%clk 0:02:57]}  d5 {[%clk 0:03:00]} 4. cxd5 {[%clk 0:02:56]}  exd5 {[%clk 0:03:01]} 5. Bg5 {[%clk 0:02:54]}  Be7 {[%clk 0:03:00]} 6. e3 {[%clk 0:02:54]}  c6 {[%clk 0:03:01]} 7. Bd3 {[%clk 0:02:53]}  Nbd7 {[%clk 0:02:59]} 8. Qc2 {[%clk 0:02:53]}  h6 {[%clk 0:03:00]} 9. Bh4 {[%clk 0:02:51]}  Nh5 {[%clk 0:03:00]} 10. Bxe7 {[%clk 0:02:51]}  Qxe7 {[%clk 0:03:01]} 11. Nge2 {[%clk 0:02:50]}  Nb6 {[%clk 0:03:01]} 12. O-O-O {[%clk 0:02:49]}  Bd7 {[%clk 0:03:01]} 13. Kb1 {[%clk 0:02:46]}  O-O-O {[%clk 0:03:01]} 14. Na4 {[%clk 0:02:45]}  Nxa4 {[%clk 0:03:00]} 15. Qxa4 {[%clk 0:02:46]}  Kb8 {[%clk 0:03:01]} 16. Rc1 {[%clk 0:02:42]}  Rhe8 {[%clk 0:03:00]} 17. Qb3 {[%clk 0:02:35]}  Qg5 {[%clk 0:02:38]} 18. g3 {[%clk 0:02:30]}  Bf5 {[%clk 0:02:38]} 19. Ka1 {[%clk 0:02:28]}  Bxd3 {[%clk 0:02:37]} 20. Qxd3 {[%clk 0:02:29]}  Qe7 {[%clk 0:02:30]} 21. Nc3 {[%clk 0:02:19]}  Nf6 {[%clk 0:02:30]} 22. Na4 {[%clk 0:02:19]}  Ne4 {[%clk 0:02:30]} 23. Rc2 {[%clk 0:02:16]}  h5 {[%clk 0:02:13]} 24. h4 {[%clk 0:02:14]}  Qf6 {[%clk 0:02:07]} 25. Qe2 {[%clk 0:02:12]}  Re7 {[%clk 0:01:54]} 26. Qxh5 {[%clk 0:01:43]}  Nxf2 {[%clk 0:01:28]} 27. Rf1 {[%clk 0:01:41]}  Rxe3 {[%clk 0:01:27]} 28. Nc3 {[%clk 0:01:37]}  Rf3 {[%clk 0:01:10]} 29. Qe5+ {[%clk 0:01:34]}  Qxe5 {[%clk 0:00:55]} 30. dxe5 {[%clk 0:01:35]}  d4 {[%clk 0:00:56]} 31. Nb1 {[%clk 0:01:34]}  Rxg3 {[%clk 0:00:19]} 32. Rcxf2 {[%clk 0:01:32]}  d3 {[%clk 0:00:18]} 33. Rxf7 {[%clk 0:01:31]}  d2 {[%clk 0:00:17]} 34. Rd1 {[%clk 0:01:29]}  Rg2 {[%clk 0:00:15]} 35. e6 {[%clk 0:01:28]}  Re2 {[%clk 0:00:12]} 36. Rd7 {[%clk 0:01:24]}  Re8 {[%clk 0:00:09]} 37. R1xd2 {[%clk 0:01:19]}  R2xe6 {[%clk 0:00:08]} 38. Rxg7 {[%clk 0:01:18]}  Rh6 {[%clk 0:00:08]} 39. Rdd7 {[%clk 0:01:16]}  Re1 {[%clk 0:00:08]} 40. Rd8# {[%clk 0:01:15]} 1-0


[Site "https://www.chess.com"]

[Event "Titled Tuesday Blitz March 29 Late 2022"]
[White "Kaganskiy, Gleb"]
[Black "Cagara, Paulina"]
[WhiteFideId "4132025"]
[BlackFideId "1124870"]
[WhiteElo "2165"]
[BlackElo "1780"]
[Result "0-1"]
[Round "04"]
[TimeControl "180+1"]
[Date "2022.03.30"]
[WhiteClock "0:00:01"]
[BlackClock "0:01:27"]

1. e4 {[%clk 0:01:20]}  c6 {[%clk 0:02:58]} 2. d4 {[%clk 0:01:18]}  d5 {[%clk 0:02:58]} 3. Nd2 {[%clk 0:01:16]}  a6 {[%clk 0:02:57]} 4. Ngf3 {[%clk 0:01:14]}  Bg4 {[%clk 0:02:56]} 5. h3 {[%clk 0:01:13]}  Bh5 {[%clk 0:02:53]} 6. g4 {[%clk 0:01:11]}  Bg6 {[%clk 0:02:53]} 7. exd5 {[%clk 0:01:11]}  cxd5 {[%clk 0:02:52]} 8. Ne5 {[%clk 0:01:11]}  Nc6 {[%clk 0:02:48]} 9. f4 {[%clk 0:01:10]}  e6 {[%clk 0:02:47]} 10. c3 {[%clk 0:01:07]}  Qh4+ {[%clk 0:02:46]} 11. Ke2 {[%clk 0:01:06]}  Nf6 {[%clk 0:02:40]} 12. Qe1 {[%clk 0:01:04]}  Qxe1+ {[%clk 0:02:36]} 13. Kxe1 {[%clk 0:01:03]}  Be4 {[%clk 0:02:35]} 14. Nxe4 {[%clk 0:01:02]}  Nxe4 {[%clk 0:02:35]} 15. Bg2 {[%clk 0:01:01]}  Nf6 {[%clk 0:02:19]} 16. Be3 {[%clk 0:00:58]}  Bd6 {[%clk 0:02:16]} 17. Ke2 {[%clk 0:00:46]}  O-O {[%clk 0:02:14]} 18. Bf3 {[%clk 0:00:43]}  Rac8 {[%clk 0:02:11]} 19. g5 {[%clk 0:00:41]}  Ne4 {[%clk 0:02:02]} 20. Bxe4 {[%clk 0:00:38]}  dxe4 {[%clk 0:02:03]} 21. h4 {[%clk 0:00:23]}  b5 {[%clk 0:01:57]} 22. a3 {[%clk 0:00:22]}  a5 {[%clk 0:01:55]} 23. Nxc6 {[%clk 0:00:19]}  Rxc6 {[%clk 0:01:55]} 24. h5 {[%clk 0:00:19]}  b4 {[%clk 0:01:52]} 25. axb4 {[%clk 0:00:18]}  axb4 {[%clk 0:01:52]} 26. Rhc1 {[%clk 0:00:18]}  bxc3 {[%clk 0:01:52]} 27. bxc3 {[%clk 0:00:16]}  Rfc8 {[%clk 0:01:48]} 28. Kd2 {[%clk 0:00:15]}  f6 {[%clk 0:01:44]} 29. gxf6 {[%clk 0:00:14]}  gxf6 {[%clk 0:01:44]} 30. h6 {[%clk 0:00:14]}  Kf7 {[%clk 0:01:41]} 31. Rg1 {[%clk 0:00:13]}  Rg8 {[%clk 0:01:38]} 32. Ra7+ {[%clk 0:00:13]}  Rc7 {[%clk 0:01:38]} 33. Rxc7+ {[%clk 0:00:12]}  Bxc7 {[%clk 0:01:38]} 34. Rxg8 {[%clk 0:00:10]}  Kxg8 {[%clk 0:01:38]} 35. c4 {[%clk 0:00:09]}  Kf7 {[%clk 0:01:38]} 36. c5 {[%clk 0:00:09]}  f5 {[%clk 0:01:35]} 37. Kc3 {[%clk 0:00:09]}  Ke7 {[%clk 0:01:34]} 38. Kb4 {[%clk 0:00:09]}  Kd7 {[%clk 0:01:34]} 39. Kb5 {[%clk 0:00:09]}  Bd8 {[%clk 0:01:32]} 40. c6+ {[%clk 0:00:08]}  Kc8 {[%clk 0:01:32]} 41. Kc5 {[%clk 0:00:06]}  Be7+ {[%clk 0:01:32]} 42. Kb6 {[%clk 0:00:06]}  Bf8 {[%clk 0:01:32]} 43. Bd2 {[%clk 0:00:05]}  Bxh6 {[%clk 0:01:31]} 44. Kc5 {[%clk 0:00:01]}  Bf8+ {[%clk 0:01:30]} 45. Kb6 {[%clk 0:00:01]}  h5 {[%clk 0:01:27]} 46. Be1 {[%clk 0:00:01]}  Be7 {[%clk 0:01:27]} 0-1


[Site "https://www.chess.com"]

[Event "Titled Tuesday Blitz March 29 Late 2022"]
[White "Koutlas, Nikolaos"]
[Black "Manolache, Marius"]
[WhiteFideId "25827138"]
[BlackFideId "1201530"]
[WhiteElo "1610"]
[BlackElo "2389"]
[Result "0-1"]
[Round "04"]
[TimeControl "180+1"]
[Date "2022.03.30"]
[WhiteClock "0:00:08"]
[BlackClock "0:01:13"]

1. c4 {[%clk 0:03:00]}  e5 {[%clk 0:02:59]} 2. g3 {[%clk 0:02:58]}  Nf6 {[%clk 0:02:58]} 3. Bg2 {[%clk 0:02:57]}  Nc6 {[%clk 0:02:57]} 4. Nc3 {[%clk 0:02:57]}  Bb4 {[%clk 0:02:57]} 5. Nd5 {[%clk 0:02:56]}  Be7 {[%clk 0:02:56]} 6. Nf3 {[%clk 0:02:56]}  O-O {[%clk 0:02:55]} 7. O-O {[%clk 0:02:53]}  Re8 {[%clk 0:02:55]} 8. Nxe7+ {[%clk 0:02:51]}  Qxe7 {[%clk 0:02:55]} 9. d3 {[%clk 0:02:51]}  h6 {[%clk 0:02:54]} 10. a3 {[%clk 0:02:50]}  a5 {[%clk 0:02:54]} 11. Bd2 {[%clk 0:02:50]}  a4 {[%clk 0:02:54]} 12. Bc3 {[%clk 0:02:48]}  d6 {[%clk 0:02:53]} 13. Re1 {[%clk 0:02:44]}  Ra6 {[%clk 0:02:50]} 14. e3 {[%clk 0:02:39]}  Bd7 {[%clk 0:02:47]} 15. d4 {[%clk 0:02:23]}  e4 {[%clk 0:02:43]} 16. Nd2 {[%clk 0:02:23]}  Bf5 {[%clk 0:02:43]} 17. h3 {[%clk 0:02:11]}  h5 {[%clk 0:02:42]} 18. f4 {[%clk 0:01:54]}  exf3 {[%clk 0:02:38]} 19. Qxf3 {[%clk 0:01:53]}  Qd7 {[%clk 0:02:32]} 20. Kh2 {[%clk 0:01:39]}  Ne4 {[%clk 0:02:22]} 21. Nxe4 {[%clk 0:01:34]}  Bxe4 {[%clk 0:02:21]} 22. Qxh5 {[%clk 0:01:31]}  Bxg2 {[%clk 0:02:17]} 23. Kxg2 {[%clk 0:01:32]}  Re4 {[%clk 0:02:17]} 24. Qf3 {[%clk 0:01:25]}  Qe7 {[%clk 0:02:11]} 25. Re2 {[%clk 0:01:17]}  Na5 {[%clk 0:02:04]} 26. c5 {[%clk 0:00:58]}  Nc4 {[%clk 0:01:48]} 27. cxd6 {[%clk 0:00:56]}  cxd6 {[%clk 0:01:44]} 28. d5 {[%clk 0:00:42]}  Ra8 {[%clk 0:01:36]} 29. Bd4 {[%clk 0:00:21]}  Re8 {[%clk 0:01:34]} 30. Rae1 {[%clk 0:00:20]}  Qg5 {[%clk 0:01:27]} 31. Rf2 {[%clk 0:00:17]}  R8e7 {[%clk 0:01:19]} 32. Qf5 {[%clk 0:00:13]}  Qxf5 {[%clk 0:01:17]} 33. Rxf5 {[%clk 0:00:13]}  Rxd4 {[%clk 0:01:16]} 34. Kf3 {[%clk 0:00:08]}  Rd2 {[%clk 0:01:13]} 0-1


[Site "https://www.chess.com"]

[Event "Titled Tuesday Blitz March 29 Late 2022"]
[White "Lin, Dachey"]
[Black "Milanovic, Marko"]
[WhiteFideId "2029650"]
[BlackFideId "980129"]
[WhiteElo "2313"]
[BlackElo "2159"]
[Result "1-0"]
[Round "04"]
[TimeControl "180+1"]
[Date "2022.03.30"]
[WhiteClock "0:02:08"]
[BlackClock "0:00:29"]

1. g4 {[%clk 0:03:00]}  d5 {[%clk 0:02:59]} 2. Bg2 {[%clk 0:03:00]}  Bxg4 {[%clk 0:02:50]} 3. c4 {[%clk 0:03:00]}  c6 {[%clk 0:02:36]} 4. Qb3 {[%clk 0:02:59]}  e6 {[%clk 0:02:34]} 5. cxd5 {[%clk 0:02:59]}  cxd5 {[%clk 0:02:29]} 6. Qa4+ {[%clk 0:02:59]}  Nd7 {[%clk 0:01:41]} 7. Qxg4 {[%clk 0:03:00]}  Rc8 {[%clk 0:01:40]} 8. Nc3 {[%clk 0:02:57]}  Ngf6 {[%clk 0:01:38]} 9. Qa4 {[%clk 0:02:56]}  a6 {[%clk 0:01:38]} 10. Nf3 {[%clk 0:02:53]}  Bc5 {[%clk 0:01:38]} 11. d4 {[%clk 0:02:53]}  Bd6 {[%clk 0:01:37]} 12. Bg5 {[%clk 0:02:53]}  h6 {[%clk 0:01:37]} 13. Bh4 {[%clk 0:02:53]}  O-O {[%clk 0:01:33]} 14. O-O {[%clk 0:02:53]}  Nb6 {[%clk 0:01:34]} 15. Qb3 {[%clk 0:02:52]}  Nc4 {[%clk 0:01:30]} 16. Bg3 {[%clk 0:02:49]}  Ne4 {[%clk 0:01:24]} 17. Rad1 {[%clk 0:02:43]}  Bxg3 {[%clk 0:01:19]} 18. hxg3 {[%clk 0:02:43]}  Ned6 {[%clk 0:01:17]} 19. Ne5 {[%clk 0:02:41]}  Na5 {[%clk 0:01:15]} 20. Qb4 {[%clk 0:02:37]}  f6 {[%clk 0:01:14]} 21. Nd3 {[%clk 0:02:36]}  Ndc4 {[%clk 0:01:14]} 22. Nc5 {[%clk 0:02:35]}  Qe7 {[%clk 0:01:06]} 23. b3 {[%clk 0:02:21]}  Nc6 {[%clk 0:01:05]} 24. Qxb7 {[%clk 0:02:21]}  Rc7 {[%clk 0:00:55]} 25. Qxa6 {[%clk 0:02:20]}  Nb4 {[%clk 0:00:54]} 26. Qb5 {[%clk 0:02:16]}  Nb2 {[%clk 0:00:39]} 27. Qxb4 {[%clk 0:02:15]}  Nxd1 {[%clk 0:00:39]} 28. Rxd1 {[%clk 0:02:16]}  Rfc8 {[%clk 0:00:34]} 29. a4 {[%clk 0:02:08]}  Qd6 {[%clk 0:00:29]} 30. Nb5 {[%clk 0:02:08]}  Qb6 {[%clk 0:00:29]} 31. a5 {[%clk 0:02:08]}  Qb8 {[%clk 0:00:29]} 32. Na6 {[%clk 0:02:08]} 1-0


[Site "https://www.chess.com"]

[Event "Titled Tuesday Blitz March 29 Late 2022"]
[White "Maranhao,Jose Renato Ruiz"]
[Black "Kozina, Anastasia"]
[WhiteFideId "2135175"]
[BlackFideId "24174017"]
[WhiteElo "1970"]
[BlackElo "1993"]
[Result "1-0"]
[Round "04"]
[TimeControl "180+1"]
[Date "2022.03.30"]
[WhiteClock "0:00:11"]
[BlackClock "0:00:12"]

1. e4 {[%clk 0:02:56]}  e6 {[%clk 0:03:00]} 2. d4 {[%clk 0:02:56]}  d5 {[%clk 0:03:01]} 3. Nc3 {[%clk 0:02:55]}  Nf6 {[%clk 0:03:00]} 4. e5 {[%clk 0:02:55]}  Nfd7 {[%clk 0:03:00]} 5. f4 {[%clk 0:02:56]}  c5 {[%clk 0:03:00]} 6. Nf3 {[%clk 0:02:57]}  Nc6 {[%clk 0:03:00]} 7. Be3 {[%clk 0:02:58]}  a6 {[%clk 0:03:00]} 8. g3 {[%clk 0:02:56]}  b5 {[%clk 0:03:00]} 9. Ne2 {[%clk 0:02:51]}  Qb6 {[%clk 0:02:55]} 10. c3 {[%clk 0:02:50]}  b4 {[%clk 0:02:55]} 11. Bg2 {[%clk 0:02:37]}  a5 {[%clk 0:02:54]} 12. O-O {[%clk 0:02:35]}  Ba6 {[%clk 0:02:54]} 13. Rf2 {[%clk 0:02:35]}  a4 {[%clk 0:02:47]} 14. Qxa4 {[%clk 0:02:23]}  Be7 {[%clk 0:02:31]} 15. Qb3 {[%clk 0:01:43]}  O-O {[%clk 0:02:20]} 16. a3 {[%clk 0:01:41]}  Na5 {[%clk 0:02:14]} 17. Qd1 {[%clk 0:01:31]}  Nc4 {[%clk 0:02:04]} 18. Bc1 {[%clk 0:01:22]}  cxd4 {[%clk 0:01:51]} 19. cxb4 {[%clk 0:01:10]}  d3 {[%clk 0:01:32]} 20. Ned4 {[%clk 0:00:37]}  d2 {[%clk 0:01:16]} 21. Bxd2 {[%clk 0:00:30]}  Nxb2 {[%clk 0:01:16]} 22. Qb3 {[%clk 0:00:27]}  Nc4 {[%clk 0:01:11]} 23. Be3 {[%clk 0:00:26]}  Nxe3 {[%clk 0:01:05]} 24. Qxe3 {[%clk 0:00:25]}  Bc4 {[%clk 0:01:01]} 25. Bf1 {[%clk 0:00:20]}  Bxb4 {[%clk 0:00:51]} 26. Bxc4 {[%clk 0:00:18]}  dxc4 {[%clk 0:00:52]} 27. Rb2 {[%clk 0:00:16]}  Rfb8 {[%clk 0:00:38]} 28. Rxb4 {[%clk 0:00:16]}  Qxb4 {[%clk 0:00:39]} 29. axb4 {[%clk 0:00:17]}  Rxa1+ {[%clk 0:00:39]} 30. Kg2 {[%clk 0:00:17]}  Ra2+ {[%clk 0:00:37]} 31. Kh3 {[%clk 0:00:17]}  Rxb4 {[%clk 0:00:34]} 32. Qc3 {[%clk 0:00:16]}  Rab2 {[%clk 0:00:31]} 33. Nc6 {[%clk 0:00:10]}  R4b3 {[%clk 0:00:17]} 34. Qd4 {[%clk 0:00:10]}  h6 {[%clk 0:00:17]} 35. Qxd7 {[%clk 0:00:11]}  Rxf3 {[%clk 0:00:17]} 36. Qe8+ {[%clk 0:00:11]}  Kh7 {[%clk 0:00:16]} 37. Ne7 {[%clk 0:00:10]}  h5 {[%clk 0:00:12]} 38. Qg8+ {[%clk 0:00:10]}  Kh6 {[%clk 0:00:12]} 39. Qh8# {[%clk 0:00:11]} 1-0


[Site "https://www.chess.com"]

[Event "Titled Tuesday Blitz March 29 Late 2022"]
[White "Martin Duque, Jesus"]
[Black "Vifleemskaia, Svetlana"]
[WhiteFideId "2208954"]
[BlackFideId "4129490"]
[WhiteElo "2243"]
[BlackElo "1901"]
[Result "1-0"]
[Round "04"]
[TimeControl "180+1"]
[Date "2022.03.30"]
[WhiteClock "0:00:17"]
[BlackClock "0:00:29"]

1. Nf3 {[%clk 0:02:55]}  Nf6 {[%clk 0:02:59]} 2. e3 {[%clk 0:02:55]}  d6 {[%clk 0:02:55]} 3. d4 {[%clk 0:02:55]}  g6 {[%clk 0:02:56]} 4. Be2 {[%clk 0:02:55]}  Bg7 {[%clk 0:02:56]} 5. O-O {[%clk 0:02:55]}  O-O {[%clk 0:02:57]} 6. c4 {[%clk 0:02:55]}  Nbd7 {[%clk 0:02:56]} 7. Nc3 {[%clk 0:02:50]}  e5 {[%clk 0:02:56]} 8. b4 {[%clk 0:02:51]}  exd4 {[%clk 0:02:53]} 9. exd4 {[%clk 0:02:48]}  d5 {[%clk 0:02:54]} 10. c5 {[%clk 0:02:48]}  c6 {[%clk 0:02:53]} 11. Bf4 {[%clk 0:02:46]}  Re8 {[%clk 0:02:51]} 12. Re1 {[%clk 0:02:42]}  a5 {[%clk 0:02:51]} 13. a3 {[%clk 0:02:40]}  axb4 {[%clk 0:02:51]} 14. axb4 {[%clk 0:02:40]}  Rxa1 {[%clk 0:02:51]} 15. Qxa1 {[%clk 0:02:41]}  Ne4 {[%clk 0:02:48]} 16. Bd3 {[%clk 0:02:27]}  Ndf6 {[%clk 0:02:44]} 17. Be5 {[%clk 0:02:16]}  Bf5 {[%clk 0:02:39]} 18. Na4 {[%clk 0:02:07]}  Qa8 {[%clk 0:02:14]} 19. h3 {[%clk 0:01:58]}  h5 {[%clk 0:02:10]} 20. Nb6 {[%clk 0:01:49]}  Qxa1 {[%clk 0:02:00]} 21. Rxa1 {[%clk 0:01:50]}  Nd7 {[%clk 0:01:57]} 22. Nxd7 {[%clk 0:01:47]}  Bxd7 {[%clk 0:01:56]} 23. Ra7 {[%clk 0:01:44]}  Bc8 {[%clk 0:01:55]} 24. Ra8 {[%clk 0:01:14]}  Bd7 {[%clk 0:01:51]} 25. Rxe8+ {[%clk 0:00:59]}  Bxe8 {[%clk 0:01:51]} 26. Bxg7 {[%clk 0:01:00]}  Kxg7 {[%clk 0:01:51]} 27. Bxe4 {[%clk 0:01:00]}  dxe4 {[%clk 0:01:51]} 28. Ng5 {[%clk 0:01:00]}  f5 {[%clk 0:01:14]} 29. Ne6+ {[%clk 0:00:59]}  Kf6 {[%clk 0:01:14]} 30. Nd8 {[%clk 0:00:59]}  Bd7 {[%clk 0:01:12]} 31. Nxb7 {[%clk 0:00:59]}  Ke6 {[%clk 0:01:12]} 32. h4 {[%clk 0:00:27]}  Kd5 {[%clk 0:01:11]} 33. Nd6 {[%clk 0:00:15]}  Kxd4 {[%clk 0:01:08]} 34. Nf7 {[%clk 0:00:15]}  Kc4 {[%clk 0:00:55]} 35. Ne5+ {[%clk 0:00:15]}  Kxb4 {[%clk 0:00:55]} 36. Nxd7 {[%clk 0:00:16]}  Kc4 {[%clk 0:00:53]} 37. g3 {[%clk 0:00:15]}  Kd5 {[%clk 0:00:53]} 38. Nf8 {[%clk 0:00:15]}  Kxc5 {[%clk 0:00:53]} 39. Nxg6 {[%clk 0:00:15]}  Kd4 {[%clk 0:00:53]} 40. Nf4 {[%clk 0:00:15]}  e3 {[%clk 0:00:53]} 41. Kf1 {[%clk 0:00:16]}  c5 {[%clk 0:00:45]} 42. Ne6+ {[%clk 0:00:16]}  Kd5 {[%clk 0:00:42]} 43. Nf4+ {[%clk 0:00:17]}  Ke4 {[%clk 0:00:40]} 44. Nxh5 {[%clk 0:00:17]}  c4 {[%clk 0:00:38]} 45. Nf4 {[%clk 0:00:16]}  c3 {[%clk 0:00:35]} 46. Ne2 {[%clk 0:00:16]}  c2 {[%clk 0:00:32]} 47. fxe3 {[%clk 0:00:17]}  Kxe3 {[%clk 0:00:29]} 48. h5 {[%clk 0:00:17]} 1-0


[Site "https://www.chess.com"]

[Event "Titled Tuesday Blitz March 29 Late 2022"]
[White "Melikhov, Evgeny V."]
[Black "Chernobay, Artem"]
[WhiteFideId "4122046"]
[BlackFideId "4167406"]
[WhiteElo "1945"]
[BlackElo "2473"]
[Result "0-1"]
[Round "04"]
[TimeControl "180+1"]
[Date "2022.03.30"]
[WhiteClock "0:00:21"]
[BlackClock "0:00:45"]

1. d4 {[%clk 0:02:59]}  Nf6 {[%clk 0:02:59]} 2. c4 {[%clk 0:02:59]}  e6 {[%clk 0:03:00]} 3. Nc3 {[%clk 0:02:59]}  Bb4 {[%clk 0:02:58]} 4. Qc2 {[%clk 0:02:59]}  O-O {[%clk 0:02:58]} 5. e4 {[%clk 0:02:59]}  d5 {[%clk 0:02:58]} 6. e5 {[%clk 0:02:59]}  Ne4 {[%clk 0:02:58]} 7. Bd3 {[%clk 0:02:59]}  c5 {[%clk 0:02:54]} 8. Nf3 {[%clk 0:02:58]}  cxd4 {[%clk 0:02:48]} 9. Nxd4 {[%clk 0:02:57]}  Nd7 {[%clk 0:02:41]} 10. Bf4 {[%clk 0:02:57]}  Qh4 {[%clk 0:02:40]} 11. g3 {[%clk 0:02:57]}  Qh5 {[%clk 0:02:39]} 12. O-O {[%clk 0:02:53]}  Bxc3 {[%clk 0:02:18]} 13. bxc3 {[%clk 0:02:52]}  g5 {[%clk 0:02:18]} 14. cxd5 {[%clk 0:02:46]}  gxf4 {[%clk 0:02:00]} 15. dxe6 {[%clk 0:02:12]}  Ng5 {[%clk 0:01:47]} 16. exd7 {[%clk 0:01:59]}  Bxd7 {[%clk 0:01:47]} 17. gxf4 {[%clk 0:01:30]}  Nh3+ {[%clk 0:01:29]} 18. Kh1 {[%clk 0:01:30]}  Kh8 {[%clk 0:01:01]} 19. Be4 {[%clk 0:00:55]}  Rg8 {[%clk 0:00:57]} 20. f3 {[%clk 0:00:46]}  Nxf4 {[%clk 0:00:48]} 21. Rg1 {[%clk 0:00:44]}  Bh3 {[%clk 0:00:47]} 22. Rxg8+ {[%clk 0:00:21]}  Rxg8 {[%clk 0:00:46]} 23. Rg1 {[%clk 0:00:21]}  Bg2+ {[%clk 0:00:44]} 24. Rxg2 {[%clk 0:00:21]}  Rxg2 {[%clk 0:00:45]} 25. Qxg2 {[%clk 0:00:20]}  Nxg2 {[%clk 0:00:45]} 26. Kxg2 {[%clk 0:00:21]}  Qxe5 {[%clk 0:00:45]} 0-1


[Site "https://www.chess.com"]

[Event "Titled Tuesday Blitz March 29 Late 2022"]
[White "Miszler, Levente"]
[Black "Kalavannan, Koby"]
[WhiteFideId "763276"]
[BlackFideId "425753"]
[WhiteElo "1966"]
[BlackElo "1927"]
[Result "0-1"]
[Round "04"]
[TimeControl "180+1"]
[Date "2022.03.30"]
[WhiteClock "0:01:33"]
[BlackClock "0:01:12"]

1. Nf3 {[%clk 0:03:00]}  c5 {[%clk 0:02:59]} 2. c4 {[%clk 0:02:54]}  Nc6 {[%clk 0:02:59]} 3. d4 {[%clk 0:02:50]}  cxd4 {[%clk 0:03:00]} 4. Nxd4 {[%clk 0:02:51]}  g6 {[%clk 0:03:00]} 5. Nc3 {[%clk 0:02:48]}  Bg7 {[%clk 0:03:00]} 6. Nxc6 {[%clk 0:02:48]}  bxc6 {[%clk 0:03:01]} 7. g3 {[%clk 0:02:48]}  Nf6 {[%clk 0:03:00]} 8. Bg2 {[%clk 0:02:48]}  O-O {[%clk 0:03:01]} 9. O-O {[%clk 0:02:48]}  Bb7 {[%clk 0:03:01]} 10. e4 {[%clk 0:02:48]}  Qa5 {[%clk 0:02:50]} 11. Be3 {[%clk 0:02:39]}  Rfd8 {[%clk 0:02:49]} 12. f4 {[%clk 0:02:32]}  d5 {[%clk 0:02:49]} 13. e5 {[%clk 0:02:27]}  Ne8 {[%clk 0:02:38]} 14. cxd5 {[%clk 0:02:24]}  cxd5 {[%clk 0:02:29]} 15. Bd4 {[%clk 0:02:23]}  Nc7 {[%clk 0:02:29]} 16. Qa4 {[%clk 0:02:16]}  Qxa4 {[%clk 0:02:24]} 17. Nxa4 {[%clk 0:02:17]}  Ne6 {[%clk 0:02:23]} 18. Bf2 {[%clk 0:02:14]}  Rac8 {[%clk 0:02:23]} 19. Rac1 {[%clk 0:02:12]}  Bc6 {[%clk 0:02:16]} 20. Nc5 {[%clk 0:02:12]}  Nxc5 {[%clk 0:01:55]} 21. Rxc5 {[%clk 0:02:13]}  e6 {[%clk 0:01:56]} 22. Rfc1 {[%clk 0:02:10]}  Bb7 {[%clk 0:01:45]} 23. Rxc8 {[%clk 0:02:10]}  Bxc8 {[%clk 0:01:43]} 24. Bxa7 {[%clk 0:02:09]}  Ba6 {[%clk 0:01:39]} 25. a3 {[%clk 0:02:04]}  d4 {[%clk 0:01:36]} 26. Bf1 {[%clk 0:02:02]}  d3 {[%clk 0:01:33]} 27. Rd1 {[%clk 0:02:03]}  g5 {[%clk 0:01:27]} 28. Kf2 {[%clk 0:02:01]}  gxf4 {[%clk 0:01:28]} 29. gxf4 {[%clk 0:02:02]}  f6 {[%clk 0:01:25]} 30. Bb6 {[%clk 0:01:53]}  Rb8 {[%clk 0:01:14]} 31. Bd4 {[%clk 0:01:52]}  fxe5 {[%clk 0:01:14]} 32. fxe5 {[%clk 0:01:49]}  Rf8+ {[%clk 0:01:13]} 33. Ke3 {[%clk 0:01:46]}  Bh6+ {[%clk 0:01:13]} 34. Ke4 {[%clk 0:01:38]}  Rf4+ {[%clk 0:01:13]} 35. Ke3 {[%clk 0:01:37]}  Rxf1+ {[%clk 0:01:12]} 36. Ke4 {[%clk 0:01:33]} 0-1


[Site "https://www.chess.com"]

[Event "Titled Tuesday Blitz March 29 Late 2022"]
[White "Mitrabha, Guha"]
[Black "Paravyan, David"]
[WhiteFideId "5057000"]
[BlackFideId "4194985"]
[WhiteElo "2468"]
[BlackElo "2569"]
[Result "0-1"]
[Round "04"]
[TimeControl "180+1"]
[Date "2022.03.29"]
[WhiteClock "0:01:22"]
[BlackClock "0:00:41"]

1. d4 {[%clk 0:03:00]}  Nf6 {[%clk 0:02:54]} 2. Nf3 {[%clk 0:03:00]}  g6 {[%clk 0:02:54]} 3. c4 {[%clk 0:02:59]}  Bg7 {[%clk 0:02:54]} 4. g3 {[%clk 0:02:59]}  c6 {[%clk 0:02:54]} 5. Bg2 {[%clk 0:02:55]}  d5 {[%clk 0:02:55]} 6. O-O {[%clk 0:02:55]}  O-O {[%clk 0:02:55]} 7. Qb3 {[%clk 0:02:55]}  Qb6 {[%clk 0:02:54]} 8. Nc3 {[%clk 0:02:54]}  Rd8 {[%clk 0:02:54]} 9. c5 {[%clk 0:02:50]}  Qxb3 {[%clk 0:02:29]} 10. axb3 {[%clk 0:02:51]}  Nbd7 {[%clk 0:02:07]} 11. b4 {[%clk 0:02:50]}  Ne4 {[%clk 0:02:04]} 12. Bf4 {[%clk 0:02:48]}  Re8 {[%clk 0:02:02]} 13. Rfd1 {[%clk 0:02:36]}  e5 {[%clk 0:02:00]} 14. Nxe5 {[%clk 0:02:28]}  Nxc3 {[%clk 0:01:56]} 15. bxc3 {[%clk 0:02:26]}  Nxe5 {[%clk 0:01:55]} 16. dxe5 {[%clk 0:02:25]}  Bxe5 {[%clk 0:01:56]} 17. Bxe5 {[%clk 0:02:22]}  Rxe5 {[%clk 0:01:57]} 18. e3 {[%clk 0:02:08]}  Bf5 {[%clk 0:01:47]} 19. Rd4 {[%clk 0:01:56]}  a6 {[%clk 0:01:46]} 20. b5 {[%clk 0:01:53]}  cxb5 {[%clk 0:01:47]} 21. Rxd5 {[%clk 0:01:53]}  Rxd5 {[%clk 0:01:36]} 22. Bxd5 {[%clk 0:01:54]}  Rc8 {[%clk 0:01:37]} 23. Bxb7 {[%clk 0:01:54]}  Rxc5 {[%clk 0:01:37]} 24. Bxa6 {[%clk 0:01:54]}  Bd3 {[%clk 0:01:26]} 25. Ra3 {[%clk 0:01:54]}  Be4 {[%clk 0:01:18]} 26. Kf1 {[%clk 0:01:36]}  Bf3 {[%clk 0:01:14]} 27. Ke1 {[%clk 0:01:32]}  Rd5 {[%clk 0:00:51]} 28. Ra1 {[%clk 0:01:29]}  Rc5 {[%clk 0:00:51]} 29. Rb1 {[%clk 0:01:26]}  Rxc3 {[%clk 0:00:49]} 30. Bxb5 {[%clk 0:01:26]}  Kg7 {[%clk 0:00:42]} 31. Be2 {[%clk 0:01:23]}  Bxe2 {[%clk 0:00:40]} 32. Kxe2 {[%clk 0:01:24]}  Rc2+ {[%clk 0:00:40]} 33. Kf3 {[%clk 0:01:24]}  h5 {[%clk 0:00:41]} 34. h3 {[%clk 0:01:24]}  Ra2 {[%clk 0:00:41]} 35. g4 {[%clk 0:01:21]}  hxg4+ {[%clk 0:00:42]} 36. hxg4 {[%clk 0:01:22]}  g5 {[%clk 0:00:42]} 37. Rb5 {[%clk 0:01:22]}  Kg6 {[%clk 0:00:41]} 38. Rxg5+ {[%clk 0:01:22]}  Kxg5 {[%clk 0:00:41]} 0-1


[Site "https://www.chess.com"]